[Event "Tata Steel India Women Rapid 2024"]
[Site "Kolkata"]
[Date "2024.11.13"]
[Round "2.5"]
[White "Divya Deshmukh"]
[Black "Lagno, Kateryna"]
[Result "1/2-1/2"]
[ECO "C45"]
[WhiteElo "2493"]
[BlackElo "2527"]
[Annotator "TA"]
[PlyCount "141"]
[EventDate "2024.11.06"]
[EventType "tourn"]
[EventCountry "IND"]
[SourceTitle "playchess.com"]
[Source "ChessBase"]
[SourceQuality "1"]
[TimeControl "1500+10"]

{[%evp 82,141,56,50,41,46,65,54,110,90,148,118,136,0,0,0,0,0,0,0,0,0,0,0,0,0,0,0,0,0,0,0,0,0,0,0,0,0,0,0,0,0,0,0,0,0,0,0,0,0,0,0,0,0,0,0,0,0,0,0,0,0]} 1. e4 {[%emt 0:00:02]} e5 {[%emt 0:00:02]} 2. Nf3 {[%emt 0:00:02]} Nc6 {[%emt 0:00:02]} 3. d4 {[%emt 0:00:01]} exd4 {[%emt 0:00:02]} 4. Nxd4 {[%emt 0:00:02]} Nf6 {[%emt 0:00:03]} 5. Nxc6 {[%emt 0:00:02]} bxc6 {[%emt 0:00:01]} 6. Nd2 {[%emt 0:00:02]} Bc5 {[%emt 0:00:12] C45: Scotch Game.} 7. e5 {[%emt 0:00:02] Recently 7.Nb3 got a lot of attention.} Qe7 {[%emt 0:02:12]} 8. Qe2 {[%emt 0:00:03]} Nd5 {[%emt 0:00:08]} 9. Nb3 {[%emt 0:00:02]} a5 {[%emt 0:05:18]} 10. Nxc5 {[%emt 0:00:06]} Qxc5 {[%emt 0:00:02]} 11. c4 {[%emt 0:00:02]} Ne7 $146 {[%emt 0:00:47]} ({Predecessor:} 11... Ba6 12. b3 O-O 13. Qb2 Nb6 14. Be3 Qe7 15. Bd3 Nd5 16. cxd5 Bxd3 17. dxc6 dxc6 {½-½ Aditya,M (2505)-Nguyen,T (2649) Menorca op 2nd 2023 (4)}) 12. Qe3 {[%emt 0:06:01]} Qb4+ {[%emt 0:01:22]} 13. Bd2 {[%emt 0:01:21]} Qxb2 {[%emt 0:00:08]} 14. Bc3 {[%emt 0:00:11]} Qc2 {[%emt 0:00:02]} 15. Rc1 {[%emt 0:00:48]} Qg6 {[%emt 0:00:05]} 16. Bd3 {[%emt 0:00:25]} Qe6 {[%emt 0:01:41]} 17. O-O {[%emt 0:00:33]} O-O {[%emt 0:00:42]} 18. f4 {[%emt 0:01:53]} f5 {[%emt 0:00:10]} 19. Qd2 {[%emt 0:01:47]} a4 {[%emt 0:03:36]} 20. Qf2 {[%emt 0:01:45]} Ba6 {[%emt 0:00:37]} 21. Bb4 {[%emt 0:00:28]} Rf7 {[%emt 0:01:32]} 22. Rfe1 {[%emt 0:00:15]} Ng6 {[%emt 0:01:40]} 23. Re3 {[%emt 0:00:11]} Nf8 {[%emt 0:00:20]} 24. Qc2 {[%emt 0:06:27]} Qh6 {[%emt 0:01:30]} 25. Rf1 {[%emt 0:00:42]} Ne6 {[%emt 0:01:34]} 26. Rh3 {[%emt 0:00:15]} Qg6 {[%emt 0:00:01]} 27. Rg3 {[%emt 0:02:14]} Qh6 {[%emt 0:00:36]} 28. Qf2 {[%emt 0:01:32]} c5 {[%emt 0:01:23]} 29. Bxc5 {[%emt 0:00:42]} Bb7 {[%emt 0:00:25]} 30. Rh3 {[%emt 0:00:46]} Qg6 {[%emt 0:00:01]} 31. Rg3 {[%emt 0:00:04]} Qh6 {[%emt 0:00:01]} 32. Ba3 {[%emt 0:00:28]} g6 {[%emt 0:00:40]} 33. h4 {[%emt 0:00:46]} Kh8 {[%emt 0:00:33]} 34. Rh3 {[%emt 0:00:08]} Bc6 {[%emt 0:00:29]} 35. Be2 {[%emt 0:00:05]} Rb8 {[%emt 0:00:41]} 36. Kh2 {[%emt 0:00:07]} Be4 {[%emt 0:00:38]} 37. h5 {[%emt 0:00:40]} g5 {[%emt 0:00:08]} 38. fxg5 {[%emt 0:00:04]} Qxg5 {[%emt 0:00:08]} 39. Rg3 {[%emt 0:00:17]} Qh4+ {[%emt 0:00:34]} 40. Kg1 {[%emt 0:00:01]} Rg7 {[%emt 0:00:07]} 41. Rxg7 {[%emt 0:00:09]} Qxf2+ {[%emt 0:00:02]} 42. Kxf2 {[%emt 0:00:08]} Kxg7 {[%emt 0:00:02]} 43. Rd1 {[%emt 0:00:04]} Bc6 {[%emt 0:01:06]} 44. Bf3 {[%emt 0:00:01]} Rb6 {[%emt 0:00:16]} ({Black should try} 44... Rd8 $14) 45. Bxc6 Rxc6 {[%emt 0:00:01]} (45... dxc6 $142 46. Kg3 Rb8 47. Rd7+ Kh6) 46. Rxd7+ $16 {[%emt 0:00:34]} Kh6 {[%emt 0:00:01]} 47. Re7 {[%emt 0:00:11]} (47. Rf7 $16 Kg5 48. c5 (48. Rxh7 Rxc4 49. Be7+ Kg4 $16) 48... Nxc5 49. Kf3 (49. Rxh7 Ne4+ 50. Ke1 Rc3 $16) 49... Kxh5 50. Rxf5+ (50. Rxh7+ Kg6 $15) 50... Kg6 51. g4) 47... Kxh5 $11 {[%emt 0:00:14]} 48. Rxh7+ {[%emt 0:00:01]} Kg6 {[%emt 0:00:08]} 49. Re7 {[%emt 0:00:19]} Ng5 {[%emt 0:00:11]} 50. c5 {[%emt 0:00:02]} Ne4+ {[%emt 0:00:10]} 51. Ke3 {[%emt 0:00:01]} Nxc5 {[%emt 0:00:03]} 52. Bxc5 {[%emt 0:00:44]} Rxc5 {[%emt 0:00:01]} 53. Kd3 {[%emt 0:00:07]} Rc1 {[%emt 0:00:16]} 54. Re6+ {[%emt 0:00:10]} Kg5 {[%emt 0:00:05]} 55. Ra6 {[%emt 0:00:07]} Rd1+ {[%emt 0:00:43]} 56. Kc3 {[%emt 0:00:13]} Rd5 {[%emt 0:00:11]} 57. e6 {[%emt 0:00:12]} Kf6 {[%emt 0:00:04]} 58. a3 {[%emt 0:00:10]} Re5 {[%emt 0:00:07]} 59. Rxa4 {[%emt 0:00:05]} Rxe6 {[%emt 0:00:03]} 60. g4 {[%emt 0:00:16]} fxg4 {[%emt 0:00:10]} 61. Rxg4 {[%emt 0:00:01]} Ke7 {[%emt 0:00:03]} 62. Rg8 {[%emt 0:00:08]} Kd7 {[%emt 0:00:03]} 63. Kc4 {[%emt 0:00:03]} Kc6 {[%emt 0:00:02]} 64. Rb8 {[%emt 0:00:05]} Re4+ {[%emt 0:00:03]} 65. Kb3 {[%emt 0:00:07]} Re3+ {[%emt 0:00:14]} 66. Ka4 {[%emt 0:00:01]} Re4+ {[%emt 0:00:02]} 67. Ka5 {[%emt 0:00:01]} Re5+ {[%emt 0:00:02]} 68. Ka6 {[%emt 0:00:48]} Re4 {[%emt 0:00:03]} 69. Ka5 {[%emt 0:00:09]} Re5+ {[%emt 0:00:02]} 70. Kb4 {[%emt 0:00:12]} Re4+ {[%emt 0:00:02]} 71. Ka5 {[%emt 0:00:08]} 1/2-1/2

[Event "Tata Steel India Women Rapid 2024"]
[Site "Kolkata"]
[Date "2024.11.13"]
[Round "3.1"]
[White "Vaishali, Rameshbabu"]
[Black "Kosteniuk, Alexandra"]
[Result "1/2-1/2"]
[ECO "B13"]
[WhiteElo "2490"]
[BlackElo "2487"]
[Annotator "TA"]
[PlyCount "71"]
[EventDate "2024.11.06"]
[EventType "tourn"]
[EventCountry "IND"]
[SourceTitle "playchess.com"]
[Source "ChessBase"]
[SourceQuality "1"]
[TimeControl "1500+10"]

{[%evp 19,71,31,22,23,29,30,29,27,31,25,26,25,31,33,31,29,29,13,15,0,0,0,0,0,0,0,0,-14,33,4,14,15,17,0,0,0,0,0,0,0,0,0,0,0,0,0,0,0,0,0,0,0,0,0]} 1. e4 {[%emt 0:00:03]} c6 {[%emt 0:00:01]} 2. d4 {[%emt 0:00:02]} d5 {[%emt 0:00:01]} 3. exd5 {[%emt 0:00:02]} cxd5 {[%emt 0:00:01]} 4. Bd3 {[%emt 0:00:02]} Nc6 {[%emt 0:00:02]} 5. c3 {[%emt 0:00:02]} Nf6 {[%emt 0:00:03]} 6. Bf4 {[%emt 0:00:02]} Bg4 {[%emt 0:00:02]} 7. Qb3 {[%emt 0:00:02]} Qd7 {[%emt 0:00:02]} 8. Nd2 {[%emt 0:00:03]} e6 {[%emt 0:00:01]} 9. Ngf3 {[%emt 0:00:02]} Bd6 {[%emt 0:00:12]} 10. Bxd6 {[%emt 0:00:02]} Qxd6 {[%emt 0:00:01]} 11. O-O {[%emt 0:00:03]} O-O {[%emt 0:00:02]} 12. Rfe1 {[%emt 0:00:04]} Ne7 {[%emt 0:00:05]} 13. Nh4 {[%emt 0:00:05] White has an edge.} (13. Qxb7 Rfb8 14. Qa6 Qxa6 15. Bxa6 Rxb2 $16) 13... Rab8 {[%emt 0:01:46]} 14. a4 {[%emt 0:00:58]} Bh5 {[%emt 0:00:28]} 15. Qc2 {[%emt 0:01:24]} Ng6 {[%emt 0:00:30]} 16. Nxg6 {[%emt 0:00:26]} Bxg6 {[%emt 0:00:03]} 17. Bxg6 {[%emt 0:00:13]} hxg6 {[%emt 0:00:02]} 18. Re3 {[%emt 0:00:22]} a5 {[%emt 0:02:15]} (18... Ng4 {with more complications.} 19. Rh3 Rfe8 20. Qd1 Qf4) 19. Nf3 {[%emt 0:01:59]} b5 {[%emt 0:00:46]} 20. axb5 {[%emt 0:00:07]} Rxb5 {[%emt 0:00:01]} 21. Ne5 {[%emt 0:00:10]} Nd7 {[%emt 0:00:50]} 22. Nd3 {[%emt 0:01:17]} Rfb8 {[%emt 0:00:46]} 23. h4 {[%emt 0:03:42]} Nf6 {[%emt 0:02:18]} (23... Nb6 $11) 24. Ra2 {[%emt 0:01:28]} Qc7 {[%emt 0:02:56] The position is equal.} 25. g3 {[%emt 0:01:44]} Ne4 {[%emt 0:01:22]} 26. Kg2 {[%emt 0:01:00]} Nd6 {[%emt 0:00:13]} 27. Re2 {[%emt 0:00:50]} Nc4 {[%emt 0:02:12]} 28. Qc1 {[%emt 0:00:21]} Qd8 {[%emt 0:00:12]} 29. Ne5 {[%emt 0:02:12]} Nxe5 {[%emt 0:00:32]} 30. Rxe5 {[%emt 0:00:02]} Qb6 {[%emt 0:00:21]} 31. Re2 {[%emt 0:00:15]} Qc7 {[%emt 0:00:25] [#] ...Qc4 would now be deadly.} 32. Qd1 {[%emt 0:00:42]} Qc4 {[%emt 0:00:28]} 33. Ra4 {[%emt 0:00:07]} Qc7 {[%emt 0:00:32]} 34. Ra2 {[%emt 0:00:05]} Qc4 {[%emt 0:00:03]} 35. Ra4 {[%emt 0:00:03]} Qc7 {[%emt 0:00:01]} 36. Ra2 {[%emt 0:00:03] Weighted Error Value: White=0.04 (flawless) /Black=0.03 (flawless) .  Mistake:       	---       	Black=1      Inaccurate:     	White=1     	---        OK:         	White=6     	Black=11} 1/2-1/2

[Event "Tata Steel India Women Rapid 2024"]
[Site "Kolkata"]
[Date "2024.11.13"]
[Round "3.2"]
[White "Koneru, Humpy"]
[Black "Divya Deshmukh"]
[Result "1/2-1/2"]
[ECO "A17"]
[WhiteElo "2530"]
[BlackElo "2493"]
[Annotator "TA"]
[PlyCount "71"]
[EventDate "2024.11.06"]
[EventType "tourn"]
[EventCountry "IND"]
[SourceTitle "playchess.com"]
[Source "ChessBase"]
[SourceQuality "1"]
[TimeControl "1500+10"]

{[%evp 9,71,11,6,8,31,24,26,30,27,7,3,0,0,0,15,0,8,-20,-39,-63,-66,-78,-65,-70,-56,-60,-57,-50,-58,-57,-11,-148,-68,-104,-28,-27,-37,-28,0,0,0,0,2,8,73,81,74,85,86,75,67,8,38,15,20,17,58,0,15,0,52,0,15,0]} 1. Nf3 {[%emt 0:00:06]} d5 {[%emt 0:00:14]} 2. e3 {[%emt 0:00:09]} Nf6 {[%emt 0:00:06]} 3. c4 {[%emt 0:00:31]} e6 {[%emt 0:00:02]} 4. Nc3 {[%emt 0:00:25]} Bd6 {[%emt 0:00:35]} 5. b3 {[%emt 0:01:08]} O-O {[%emt 0:00:07]} 6. Bb2 {[%emt 0:00:13]} Nc6 {[%emt 0:00:03]} 7. d4 {[%emt 0:04:35]} dxc4 {[%emt 0:00:47]} 8. Bxc4 {[%emt 0:01:07] White has an edge.} e5 {[%emt 0:00:09]} 9. dxe5 {[%emt 0:06:19]} Nxe5 {[%emt 0:00:04]} 10. Nxe5 {[%emt 0:00:16]} Bxe5 {[%emt 0:00:01]} 11. Qxd8 {[%emt 0:00:15]} Rxd8 {[%emt 0:00:02]} 12. Ke2 {[%emt 0:01:00]} Bd7 {[%emt 0:01:25]} 13. Rad1 {[%emt 0:00:58] [#]} b5 $1 {[%emt 0:02:16]} 14. Bd3 {[%emt 0:00:16]} (14. Rxd7 Nxd7) 14... b4 $1 {[%emt 0:00:14]} 15. Na4 {[%emt 0:00:20]} Bxb2 {[%emt 0:00:03]} 16. Nxb2 {[%emt 0:00:02]} Nd5 $1 {[%emt 0:00:01] aiming for ...Nc3+.} 17. Ra1 {[%emt 0:02:22]} Nc3+ {[%emt 0:00:06]} 18. Kd2 $1 {[%emt 0:00:17]} a5 {[%emt 0:02:27]} 19. Kc2 {[%emt 0:02:06]} a4 {[%emt 0:01:24]} (19... Ra7 $15 {feels stronger.} 20. a4 Be6) 20. f3 {[%emt 0:01:22]} (20. a3 $11) 20... Ra7 {[%emt 0:12:56]} (20... a3 $17 21. Nd1 Bb5 22. Bxb5 Nxb5) 21. Bc4 {[%emt 0:00:09]} Rda8 {[%emt 0:00:42]} (21... c5 $17 22. Rhf1 g5) 22. Nd3 $11 {[%emt 0:00:13]} axb3+ {[%emt 0:02:57]} 23. Bxb3 {[%emt 0:02:49]} Nxa2 {[%emt 0:00:06]} (23... c5 $5) 24. Nc5 {[%emt 0:01:13]} Bb5 {[%emt 0:01:39]} 25. Rhd1 {[%emt 0:00:07]} g6 {[%emt 0:00:13]} 26. Rd4 {[%emt 0:00:30] [#] Hoping for Kb2.} c6 {[%emt 0:00:29]} (26... Ra3 $11) 27. Kb2 $16 {[%emt 0:00:02] White has more active pieces.} Nc3 {[%emt 0:00:02]} 28. Rxa7 {[%emt 0:00:06]} Rxa7 {[%emt 0:00:00]} 29. Rxb4 {[%emt 0:00:07]} Ne2 {[%emt 0:00:07]} 30. Bc4 {[%emt 0:00:40]} (30. Ba4 $14) 30... Bxc4 {[%emt 0:00:40]} 31. Rxc4 $11 {[%emt 0:00:02] Rc2 is the strong threat. KRN-KRN} Re7 $1 {[%emt 0:00:03]} 32. Re4 {[%emt 0:00:21]} Ra7 {[%emt 0:00:18]} 33. Rc4 {[%emt 0:00:12] Rc2 would now be deadly.} Re7 $1 {[%emt 0:00:00]} 34. Re4 {[%emt 0:00:10]} Ra7 {[%emt 0:00:01]} 35. Rc4 {[%emt 0:00:16] And now Rc2 would win.} Re7 $1 {[%emt 0:00:22]} 36. Re4 {[%emt 0:00:01] Weighted Error Value: White=0.21 (precise) /Black=0.17 (very precise) .  Mistake:       	White=2     	Black=4      Inaccurate:     	White=4     	Black=2      OK:         	White=11    	Black=7      Best:        	White=1     	Black=1      Strong:       	White=1     	Black=5} 1/2-1/2

[Event "Tata Steel India Women Rapid 2024"]
[Site "Kolkata"]
[Date "2024.11.13"]
[Round "3.3"]
[White "Lagno, Kateryna"]
[Black "Gunina, Valentina"]
[Result "1-0"]
[ECO "B30"]
[WhiteElo "2527"]
[BlackElo "2425"]
[Annotator "RC"]
[PlyCount "97"]
[EventDate "2024.11.06"]
[EventType "tourn"]
[EventCountry "IND"]
[SourceTitle "playchess.com"]
[Source "ChessBase"]
[SourceQuality "1"]
[TimeControl "1500+10"]

1. e4 {[%emt 0:00:02]} c5 {[%emt 0:00:01]} 2. Nf3 {[%emt 0:00:02]} Nc6 {[%emt 0:00:02]} 3. Bb5 {[%emt 0:00:02]} e6 {[%emt 0:00:02]} 4. Bxc6 {[%emt 0:00:13]} bxc6 {[%emt 0:00:04]} 5. e5 {[%emt 0:00:02]} d6 {[%emt 0:00:29]} 6. exd6 {[%emt 0:00:10]} Bxd6 {[%emt 0:00:03]} 7. d3 {[%emt 0:00:22]} Ne7 {[%emt 0:00:24]} 8. Nbd2 {[%emt 0:00:25]} f6 {[%emt 0:00:25]} 9. Ne4 {[%emt 0:02:29]} e5 {[%emt 0:00:06]} 10. Nfd2 {[%emt 0:01:00]} O-O {[%emt 0:01:03]} 11. Nxd6 {[%emt 0:02:16]} Qxd6 {[%emt 0:00:03]} 12. Ne4 {[%emt 0:00:01]} Qd8 {[%emt 0:00:04]} 13. O-O {[%emt 0:00:32]} f5 {[%emt 0:01:42]} 14. Nxc5 {[%emt 0:01:06]} Qd5 {[%emt 0:00:01]} 15. b4 {[%emt 0:00:49]} f4 {[%emt 0:01:23]} 16. Qh5 {[%emt 0:05:31]} f3 {[%emt 0:01:19]} 17. c4 {[%emt 0:00:50]} Qd6 {[%emt 0:00:30]} 18. Re1 {[%emt 0:04:03]} Ng6 {[%emt 0:00:41]} 19. Ne4 {[%emt 0:00:48]} Qxd3 {[%emt 0:00:17]} 20. Ng5 {[%emt 0:00:06]} h6 {[%emt 0:00:17]} 21. Nxf3 {[%emt 0:00:02]} e4 {[%emt 0:02:26]} 22. Qxg6 {[%emt 0:00:20]} Bf5 {[%emt 0:00:11]} 23. Qg3 {[%emt 0:01:00]} exf3 {[%emt 0:00:30]} 24. Bxh6 {[%emt 0:00:23]} Rf7 {[%emt 0:00:10]} 25. Re3 {[%emt 0:01:36]} Qd4 {[%emt 0:02:11]} 26. Rae1 {[%emt 0:00:01]} fxg2 {[%emt 0:00:27]} 27. Qxg2 {[%emt 0:00:32]} Kh7 {[%emt 0:01:13]} 28. Bg5 {[%emt 0:00:20]} Qxc4 {[%emt 0:00:01]} 29. a3 {[%emt 0:00:25]} a5 {[%emt 0:00:38]} 30. bxa5 {[%emt 0:00:14]} Rxa5 {[%emt 0:00:02]} 31. Qg3 {[%emt 0:00:26]} Ra4 {[%emt 0:03:47]} 32. h3 {[%emt 0:00:01]} Bg6 {[%emt 0:00:37]} 33. Re7 {[%emt 0:00:32]} Qd5 {[%emt 0:00:50]} 34. Rxf7 {[%emt 0:00:21]} Bxf7 {[%emt 0:00:05]} 35. Bf4 {[%emt 0:00:37]} Qh5 {[%emt 0:00:45]} 36. Re5 {[%emt 0:00:17]} Qd1+ {[%emt 0:00:03]} 37. Kh2 {[%emt 0:00:01]} Ra7 {[%emt 0:03:22]} 38. Be3 {[%emt 0:01:05]} Rb7 {[%emt 0:00:22]} 39. Rg5 {[%emt 0:00:15]} Bd5 {[%emt 0:00:12]} 40. Qh4+ {[%emt 0:00:04]} Kg8 {[%emt 0:00:17]} 41. Rg1 {[%emt 0:00:06]} Qf3 {[%emt 0:00:11]} 42. Qg4 {[%emt 0:00:31]} Qf8 {[%emt 0:01:06]} 43. h4 {[%emt 0:00:20]} Rf7 {[%emt 0:00:53]} 44. h5 {[%emt 0:00:06]} Qxa3 {[%emt 0:01:06]} 45. h6 {[%emt 0:00:15]} Qd6+ {[%emt 0:00:07]} 46. Rg3 {[%emt 0:00:03]} Qb8 {[%emt 0:01:45]} 47. hxg7 {[%emt 0:00:18]} Bf3 {[%emt 0:00:30]} 48. Qe6 {[%emt 0:00:08]} Bh5 {[%emt 0:00:15]} 49. Qh6 {[%emt 0:00:11]} 1-0

[Event "Tata Steel India Women Rapid 2024"]
[Site "Kolkata"]
[Date "2024.11.13"]
[Round "3.4"]
[White "Vantika Agrawal"]
[Black "Dzagnidze, Nana"]
[Result "1/2-1/2"]
[ECO "D37"]
[WhiteElo "2392"]
[BlackElo "2518"]
[Annotator "TA"]
[PlyCount "75"]
[EventDate "2024.11.06"]
[EventType "tourn"]
[EventCountry "IND"]
[SourceTitle "playchess.com"]
[Source "ChessBase"]
[SourceQuality "1"]
[TimeControl "1500+10"]

{[%evp 9,75,32,29,22,40,21,20,14,24,20,18,30,22,16,37,34,33,35,45,41,32,46,49,62,59,44,82,87,79,79,85,80,79,62,63,45,54,34,67,67,65,61,56,56,59,52,66,53,68,62,171,177,189,67,60,0,70,0,0,0,0,0,0,0,0,0,0,0]} 1. d4 {[%emt 0:00:32]} Nf6 {[%emt 0:00:03]} 2. c4 {[%emt 0:00:02]} e6 {[%emt 0:00:02]} 3. Nf3 {[%emt 0:00:03]} d5 {[%emt 0:00:10]} 4. Nc3 {[%emt 0:00:22]} h6 {[%emt 0:01:22]} 5. Bf4 {[%emt 0:03:42]} dxc4 {[%emt 0:02:40]} 6. e3 {[%emt 0:03:45]} Bd6 {[%emt 0:01:13]} 7. Bxd6 {[%emt 0:00:50]} (7. Ne5 {looks sharper.} Nd5 8. Qg4 Nxf4 9. exf4 O-O 10. Rd1) 7... cxd6 {[%emt 0:00:02]} 8. Bxc4 {[%emt 0:00:03]} O-O {[%emt 0:00:05]} 9. O-O {[%emt 0:00:09]} a6 {[%emt 0:03:01]} 10. a4 {[%emt 0:05:15][%cal Ba2a4,Ba4a5][%mdl 32]} d5 {[%emt 0:05:35]} 11. Bd3 {[%emt 0:00:19]} b6 {[%emt 0:00:28]} 12. Ne5 {[%emt 0:02:15]} Bb7 {[%emt 0:00:03] [#]} 13. a5 $1 {[%emt 0:02:54]} Nbd7 {[%emt 0:03:04]} (13... Nc6 14. Nxc6) 14. Nxd7 {[%emt 0:01:14]} Nxd7 {[%emt 0:00:14]} 15. Qb3 {[%emt 0:01:52]} Rb8 {[%emt 0:00:15]} 16. axb6 {[%emt 0:00:43]} Qxb6 {[%emt 0:03:47]} 17. Qa3 {[%emt 0:00:41][%cal Oc3a4]} Rfc8 {[%emt 0:00:07]} 18. Na4 {[%emt 0:00:17]} (18. Bxa6 $2 {loses.} Ra8 19. Bxb7 Rxa3 20. Bxc8 Rxa1 (20... Qxb2 21. Rxa3 Qxa3 22. Nxd5 $15) 21. Rxa1 Nb8 $19 (21... Qxb2 22. Rb1 $17)) 18... Qd8 {[%emt 0:00:14]} 19. b4 {[%emt 0:00:42]} Ra8 {[%emt 0:01:57]} 20. Nc5 {[%emt 0:00:14]} Nxc5 {[%emt 0:00:05]} 21. bxc5 {[%emt 0:00:39]} a5 {[%emt 0:00:58]} 22. Rfb1 {[%emt 0:00:05]} Bc6 {[%emt 0:00:37]} 23. Bb5 {[%emt 0:00:11]} a4 {[%emt 0:00:34]} 24. Bxc6 {[%emt 0:00:30]} Rxc6 {[%emt 0:00:02]} 25. Qb4 $36 {[%emt 0:00:53][%mdl 2048] White has the initiative.} Rca6 {[%emt 0:00:18]} 26. Ra3 {[%emt 0:00:09]} R6a7 {[%emt 0:00:38]} 27. Qb6 {[%emt 0:00:29]} Qg5 {[%emt 0:00:22]} 28. h3 {[%emt 0:00:35]} Qe7 {[%emt 0:00:41]} 29. Rb4 {[%emt 0:00:21]} g6 {[%emt 0:01:02]} (29... Qe8 $14) 30. Qb5 $18 {[%emt 0:00:06]} Ra5 {[%emt 0:00:02]} 31. Qb7 {[%emt 0:00:06]} ({Only move:} 31. Raxa4 $18 Qd8 (31... Rxb5 $2 32. Rxa8+ Kg7 33. Rxb5 $18) 32. Rxa5 Qxa5 33. Kh2 (33. Qxa5 Rxa5 34. Kf1 Ra8 $18) 33... Qxb5 34. Rxb5) 31... Qd8 $14 {[%emt 0:00:09]} 32. c6 {[%emt 0:00:13]} (32. g3 $14) 32... Qc8 {[%emt 0:00:17]} (32... Qf8 $11) 33. c7 {[%emt 0:00:16] White has more active pieces.} (33. Raxa4 $14 Rxa4 34. Rxa4) 33... R5a7 $11 {[%emt 0:00:03][%cal Ba5a7,Ba7c7,Bc7c8][%mdl 32] The position is equal.} 34. Qxc8+ {[%emt 0:00:08]} Rxc8 {[%emt 0:00:02]} 35. Rbxa4 {[%emt 0:00:11]} Raxc7 {[%emt 0:00:02]} 36. Ra8 {[%emt 0:00:06]} Kg7 {[%emt 0:00:02]} 37. Rxc8 {[%emt 0:00:03]} Rxc8 {[%emt 0:00:02]} 38. g3 {[%emt 0:00:04] Weighted Error Value: White=0.13 (very precise) /Black=0.13 (very precise) .  Mistake:       	White=3     	Black=2      Inaccurate:     	---       	Black=2      OK:         	White=14    	Black=11     Best:        	White=2     	Black=1} 1/2-1/2